bitfinex/quotes_ETHUSD_20250529
["timestamp","ask_amount","ask_price","bid_price","bid_amount"]
[1748489791082,10.4182232,2754.4,2754.1,0.05]
[1748489792290,9.4395232,2754.4,2754.1,0.05]
[1748489793009,3.63081838,2754.2,2754.1,0.05]
[1748489793360,5.18081838,2754.2,2754.1,0.05]
[1748489793572,6.64286641,2754.2,2754.1,0.05]
[1748489795213,5.18174142,2753.5,2753.4,0.15]
[1748489795423,10.11274142,2753.5,2753.4,0.15]
[1748489795722,13.18174142,2753.5,2753.4,0.15]
[1748489796009,19.79407638,2753.5,2753.4,0.15]
[1748489796392,14.86307638,2753.5,2753.4,0.15]
[1748489796595,11.79407638,2753.5,2753.4,0.15]
[1748489797839,11.79407638,2753.5,2753.1,0.05]
[1748489797840,4.18213714,2753.2,2753.1,0.05]
[1748489797994,5.96355129,2753.2,2753.1,0.05]
[1748489799139,18.89555129,2753.2,2753.1,0.05]
[1748489800226,13.96355129,2753.2,2753.1,0.05]
[1748489800539,18.89555129,2753.2,2753.1,0.05]
[1748489801041,5.96355129,2753.2,2753.1,0.05]
[1748489801559,5.41355129,2753.2,2753.1,0.05]
[1748489801860,3.63213714,2753.2,2753.1,0.05]
[1748489801999,8.56413714,2753.2,2753.1,0.05]
[1748489802197,9.49993714,2753.2,2753.1,0.05]
[1748489802433,10.04993714,2753.2,2753.1,0.05]
[1748489803906,10.04993714,2753.2,2752.1,0.05]
[1748489803907,4.18345687,2752.2,2752.1,0.05]
[1748489804247,9.11545687,2752.2,2752.1,0.05]
[1748489804436,4.932,2752.2,2752.1,0.05]
[1748489804627,8.56545687,2752.2,2752.1,0.05]
[1748489806916,9.34813547,2752.2,2752.1,0.05]
[1748489807368,5.107729,2752.5,2752.1,0.05]
[1748489807510,1.06,2752.2,2752.1,0.05]
[1748489808512,1.06,2752.2,2752.1,12.10329144]
[1748489809552,7.84,2752.6,2752.4,8.0]
[1748489809763,1.06,2752.3,2752.1,0.4698]
[1748489810100,0.9542,2753.9,2752.5,12.05286085]
[1748489810344,3.63163662,2753.6,2753.0,3.63235313]
[1748489810536,8.86778256,2753.8,2753.1,3.632222]
[1748489810537,0.30331741,2753.5,2753.1,3.632222]
[1748489810706,1.06,2753.4,2753.1,3.632222]
[1748489810911,0.30331741,2753.3,2752.9,3.63249806]
[1748489811211,0.30331741,2753.3,2753.2,8.0]
[1748489811869,0.30331741,2753.3,2753.2,7.95]
[1748489813542,1.06,2753.4,2753.2,7.95]
[1748489816735,4.69196695,2753.4,2753.2,7.95]
[1748489816974,4.69188634,2753.4,2753.2,7.95]
[1748489817362,1.06,2753.4,2753.2,7.95]
[1748489818172,5.54835619,2753.4,2752.9,8.0]
[1748489818898,5.54841747,2753.4,2752.9,8.0]
[1748489819082,4.69195361,2753.4,2752.9,8.0]
[1748489819439,4.69195361,2753.4,2752.8,0.4198]
[1748489819440,3.63206569,2753.3,2752.8,0.4198]
[1748489819644,1.06,2753.4,2752.8,0.4198]
[1748489819645,3.63230067,2753.1,2752.8,0.4198]
[1748489820749,3.63214285,2753.2,2752.8,0.4198]
[1748489820954,3.63169293,2753.6,2752.9,3.63253296]
[1748489821281,3.631902,2753.4,2752.8,5.25764172]
[1748489821452,4.69076617,2753.5,2752.8,1.62506392]
[1748489821659,3.63203077,2753.3,2752.8,1.62506392]
[1748489822066,3.63213884,2753.2,2752.8,1.62506392]
[1748489822579,1.059,2753.5,2752.8,0.4198]
[1748489822795,3.63218505,2753.2,2752.8,0.4198]
[1748489823000,3.63231219,2753.1,2752.8,0.4198]
[1748489823298,3.63231219,2753.1,2752.2,0.4198]
[1748489823299,3.63240101,2753.0,2752.2,0.4198]
[1748489823595,3.63283073,2752.7,2752.2,4.05318646]
[1748489823797,4.69187907,2752.7,2752.2,0.4198]
[1748489824094,3.63293566,2752.6,2752.2,0.4198]
[1748489824399,3.63321093,2752.4,2752.2,0.4198]
[1748489824600,3.63292886,2752.6,2752.2,0.4198]
[1748489824818,1.059,2752.7,2752.2,0.4198]
[1748489824975,3.63345687,2752.2,2752.1,0.05]
[1748489825182,4.36012268,2752.2,2752.1,0.05]
[1748489825574,3.63345687,2752.2,2752.1,0.05]
[1748489826008,1.06,2752.2,2752.1,0.05]
[1748489826178,3.63287537,2752.7,2752.2,8.0]
[1748489826393,4.69297192,2752.6,2752.1,8.05]
[1748489826790,1.06,2752.6,2752.1,3.683544]
[1748489827100,1.06,2752.6,2752.2,3.63340948]
[1748489827591,1.06,2752.7,2752.2,8.0]
[1748489827769,0.9034,2753.3,2752.4,8.0]
[1748489827969,0.9034,2753.3,2752.6,8.4198]
[1748489828210,3.63154412,2753.7,2752.7,8.0]
[1748489828211,1.06,2753.2,2752.7,8.0]
[1748489828367,1.06,2753.2,2752.9,8.0]
[1748489828569,1.06,2753.2,2752.9,11.632509]
[1748489829113,1.06,2753.2,2752.9,8.0]
[1748489829421,1.06,2753.2,2752.9,11.63252458]
[1748489829779,1.06,2753.2,2752.9,8.0]
[1748489829980,1.06,2753.2,2752.6,12.2918]
[1748489830194,1.06,2753.2,2752.6,13.28181754]
[1748489830195,4.69223975,2753.2,2752.6,13.28181754]
[1748489830401,4.69223975,2753.2,2752.8,8.0]
[1748489830702,3.63227565,2753.1,2752.6,9.64898]
[1748489830905,1.06,2753.2,2752.2,0.4198]
[1748489831227,3.63301584,2752.6,2752.2,0.4198]
[1748489831423,1.96550192,2753.1,2752.2,0.4198]
[1748489831424,3.63273772,2752.8,2752.3,8.0]
[1748489831586,3.63252622,2753.0,2752.5,8.0]
[1748489831915,3.63300779,2752.6,2752.0,3.63364336]
[1748489832093,3.63300779,2752.6,2752.0,0.36336434]
[1748489832094,3.63300484,2752.6,2752.0,0.36336434]
[1748489832287,0.9463,2752.6,2751.7,3.63400347]
[1748489832607,0.9463,2752.6,2751.6,3.63415715]
[1748489832815,3.63354432,2752.2,2751.6,3.63415715]
[1748489833014,3.63354432,2752.2,2751.7,8.0]
[1748489833214,3.63330678,2752.4,2751.7,8.0]
[1748489833417,3.63327393,2752.4,2751.9,8.0]
[1748489833811,0.9463,2752.6,2751.7,8.0]
[1748489834013,3.63334112,2752.3,2751.7,3.63411431]
[1748489834215,3.63313339,2752.5,2751.7,3.63410782]
[1748489834385,3.63306085,2752.5,2751.7,3.63410782]
[1748489834718,3.63306085,2752.5,2751.9,11.63373946]
[1748489835031,1.06,2752.4,2751.9,8.0]
[1748489835209,1.06,2752.4,2752.1,8.0]
[1748489835583,1.06,2752.4,2751.9,11.63379314]
[1748489835925,3.63333959,2752.3,2751.8,8.0]
[1748489836071,4.6932237,2752.4,2751.7,1.16341078]
[1748489836275,4.6932237,2752.4,2751.8,3.63398502]
[1748489836775,1.06,2752.4,2752.1,8.0]
[1748489836975,1.06,2752.4,2752.1,3.6335658]
[1748489837220,3.63269988,2752.8,2751.8,3.63398502]
[1748489837517,1.06,2752.5,2752.3,8.0]
[1748489837821,1.06,2752.5,2752.4,3.63319284]
[1748489838033,1.06,2753.0,2752.4,3.63319284]
[1748489838183,1.06,2753.0,2752.7,8.0]
[1748489838375,1.06,2753.0,2752.9,8.0]
[1748489838594,3.63194493,2753.4,2752.9,8.0]
[1748489838595,1.06,2753.2,2752.9,8.0]
[1748489838807,3.63214849,2753.2,2752.9,8.0]
[1748489839041,4.69203833,2753.3,2752.9,8.0]
[1748489839334,3.63277788,2752.8,2752.1,8.0]
[1748489839491,0.9178,2753.0,2752.2,3.63345687]
[1748489839823,3.63262216,2752.9,2752.4,8.0]
[1748489840029,4.55025153,2753.0,2752.4,11.63315503]
[1748489840314,4.55020535,2753.0,2752.4,3.63312442]
[1748489840678,4.55020535,2753.0,2752.4,8.0]
[1748489840679,3.63257673,2752.9,2752.4,8.0]
[1748489841085,3.63268057,2752.8,2752.3,8.0]
[1748489841298,4.45086207,2752.9,2752.3,11.63332248]
[1748489841613,4.45083743,2752.9,2752.3,11.63326145]
[1748489842019,0.81827821,2752.9,2752.2,11.872]
[1748489842328,3.63287994,2752.7,2752.2,8.0]
[1748489842816,3.63271358,2752.8,2752.2,11.63340346]
[1748489843020,3.63271358,2752.8,2752.6,8.0]
[1748489843021,1.06,2752.8,2752.6,8.0]
[1748489843318,1.06,2752.8,2752.3,8.0]
[1748489843319,4.69273685,2752.8,2752.3,8.0]
[1748489843683,3.63294213,2752.6,2752.0,3.63365975]
[1748489843991,3.63316294,2752.5,2751.9,3.63385082]
[1748489844204,3.63324756,2752.4,2751.9,8.0]
[1748489844380,4.28063379,2752.6,2751.9,8.0]
[1748489844585,3.63329867,2752.4,2751.9,8.0]
[1748489844818,3.63329867,2752.4,2751.9,11.872]
[1748489844992,3.63334322,2752.3,2751.7,8.0]
[1748489845191,4.28066703,2752.6,2751.8,3.872]
[1748489845396,4.58450371,2752.7,2752.1,8.0]
[1748489845606,3.63328905,2752.4,2751.9,8.0]
[1748489845813,3.63328905,2752.4,2751.9,11.63383551]
[1748489846184,3.63311261,2752.5,2751.9,11.63383551]
[1748489846390,3.63297867,2752.6,2751.9,11.63382885]
[1748489846698,3.63303284,2752.6,2752.0,3.63367471]
[1748489847021,1.06,2752.7,2752.4,8.0]
[1748489847211,4.6928145,2752.7,2752.3,8.0]
[1748489847521,3.63321131,2752.4,2752.0,3.872]
[1748489847684,3.63308091,2752.5,2752.1,8.0]
[1748489847889,1.06,2752.7,2752.1,8.0]
[1748489848085,1.06,2752.7,2752.0,3.872]
[1748489848086,3.63320838,2752.4,2752.0,8.0]
[1748489848287,3.63312031,2752.5,2752.0,8.0]
[1748489849502,3.63322535,2752.4,2752.0,8.0]
[1748489849886,3.63322535,2752.4,2751.8,15.50594438]
[1748489850082,3.63322535,2752.4,2752.0,8.0]
[1748489850314,3.63320944,2752.4,2751.7,3.63406864]
[1748489850620,3.63332485,2752.3,2751.8,3.63395425]
[1748489850810,3.63325696,2752.4,2751.9,3.63384205]
[1748489851009,3.63325696,2752.4,2751.8,11.63392885]
[1748489851329,3.63332769,2752.3,2751.8,11.63392885]
[1748489851620,0.9867,2752.5,2751.8,8.0]
[1748489851805,3.63327837,2752.4,2751.8,3.63391636]
[1748489852005,5.21167018,2752.5,2751.8,3.63391636]
[1748489852006,5.21169101,2752.5,2751.9,11.63377946]
[1748489852207,1.57857,2752.5,2751.8,8.0]
[1748489852411,1.57857,2752.5,2751.5,3.63437517]
[1748489852756,1.57857,2752.5,2751.7,3.63411144]
[1748489852757,3.63351849,2752.2,2751.7,3.63411144]
[1748489853026,3.63351849,2752.2,2751.6,3.63421986]
[1748489853225,3.63351849,2752.2,2751.7,8.0]
[1748489853828,3.63336764,2752.3,2751.7,3.6340805]
[1748489853996,0.9867,2752.5,2751.6,0.72687332]
[1748489854323,1.059,2752.4,2752.0,8.0]
[1748489855199,0.9867,2752.5,2752.0,3.63364602]
[1748489855521,1.059,2752.4,2751.9,11.6337718]
[1748489855723,1.059,2752.4,2752.0,3.63364664]
[1748489856289,1.059,2752.4,2751.9,8.0]
[1748489856290,4.69228451,2752.4,2751.9,8.0]
[1748489856835,1.059,2752.4,2751.9,11.63384486]
[1748489857008,4.69222671,2752.4,2751.9,8.0]
[1748489857527,1.059,2752.4,2751.9,11.63372491]
[1748489857828,1.059,2752.4,2751.9,11.63378777]
[1748489858026,4.69219329,2752.4,2751.9,8.0]
[1748489858528,1.99018282,2752.4,2751.7,11.872]
[1748489858737,3.63347383,2752.2,2751.7,15.50604963]
[1748489859091,3.63347383,2752.2,2751.7,11.63404963]
[1748489859290,3.63361951,2752.1,2751.7,7.8]
[1748489859905,3.63392763,2751.9,2751.3,1.82952281]
[1748489860200,3.63392763,2751.9,2751.1,0.05]
[1748489860201,4.96570992,2751.9,2751.2,7.50675896]
[1748489860407,4.9656535,2751.9,2751.4,3.63443761]
[1748489860615,3.63398502,2751.8,2750.5,0.514]
[1748489860942,5.20379276,2751.9,2750.5,3.63560005]
[1748489860943,3.63465012,2751.3,2750.5,3.63560005]
[1748489861128,4.23539276,2751.9,2750.1,0.05]
[1748489861129,0.9425,2751.1,2750.1,0.05]
[1748489861331,1.059,2751.2,2750.2,9.25792192]
[1748489861532,1.059,2751.2,2751.1,8.0]
[1748489861905,1.059,2751.2,2750.9,3.63511698]
[1748489862112,1.059,2751.2,2751.0,8.0]
[1748489862707,8.44852016,2751.8,2751.0,8.0]
[1748489862708,3.63417835,2751.7,2751.1,3.63490967]
[1748489862923,1.059,2751.4,2751.0,11.63498693]
[1748489863141,1.059,2751.4,2750.3,9.74995159]
[1748489863438,9.50815613,2751.3,2750.5,3.63562695]
[1748489863603,3.63499616,2751.1,2750.3,3.6359116]
[1748489863939,3.63512583,2751.0,2750.3,3.6359116]
[1748489864138,1.059,2750.9,2750.3,3.6359116]
[1748489864299,1.059,2750.9,2750.6,8.0]
[1748489864500,1.059,2750.9,2750.4,8.0]
[1748489864835,1.059,2750.9,2750.3,8.0]
[1748489865053,1.059,2750.9,2750.4,3.63573994]
[1748489865337,1.059,2750.9,2750.5,3.63561464]
[1748489865536,1.52841154,2750.9,2750.3,8.0]
[1748489865736,1.059,2750.9,2750.1,3.923]
[1748489865915,1.059,2750.9,2750.1,0.05]
[1748489866111,4.58560765,2751.2,2750.1,0.05]
[1748489866112,1.059,2750.8,2750.4,3.63575801]
[1748489866318,0.9425,2751.3,2750.7,8.0]
[1748489866531,1.059,2751.2,2750.8,8.0]
[1748489866840,4.577157,2751.3,2750.3,8.0]
[1748489866841,0.9425,2751.3,2750.3,8.0]
[1748489867139,1.059,2751.1,2750.5,3.63562918]
[1748489867362,4.57715346,2751.3,2750.3,8.0]
[1748489867662,4.57715346,2751.3,2750.6,3.63556319]
[1748489867663,1.059,2751.0,2750.6,3.63556319]
[1748489867940,0.9425,2751.3,2750.5,3.63567752]
[1748489868152,1.059,2751.1,2750.6,3.63557042]
[1748489869000,0.9425,2751.3,2750.8,3.63520058]
[1748489869208,1.059,2751.0,2750.8,3.63520058]
[1748489869399,1.059,2751.0,2750.7,11.63538121]
[1748489869603,1.059,2751.0,2750.6,8.0]
[1748489870048,1.059,2751.0,2750.7,3.6354194]
[1748489870269,1.059,2751.0,2750.6,11.63551008]
[1748489870452,4.69406031,2751.0,2750.1,0.05]
[1748489870635,1.89189474,2751.0,2750.5,8.0]
[1748489870837,3.63525964,2750.9,2750.4,8.0]
[1748489871033,1.89189474,2751.0,2750.4,3.63574264]
[1748489871225,1.059,2751.0,2750.5,3.63569983]
[1748489871584,1.059,2751.0,2750.1,0.05]
[1748489871585,0.9626,2750.9,2750.1,0.05]
[1748489871753,0.9626,2750.9,2750.6,8.0]
[1748489872342,0.9626,2750.9,2750.6,11.63552604]
[1748489872563,2.0226,2750.9,2750.6,11.63552604]
[1748489872934,0.9675,2751.3,2750.7,3.63543825]
[1748489873115,0.9675,2751.3,2750.6,8.0]
[1748489873116,1.06,2751.1,2750.8,3.63520083]
[1748489874032,1.06,2751.1,2750.8,8.0]
[1748489874250,4.8405,2751.0,2750.1,0.05]
[1748489874549,3.63558825,2750.6,2750.1,8.05]
[1748489874749,3.63539012,2750.8,2750.1,3.68622738]
[1748489875064,1.06,2750.7,2750.3,8.0]
[1748489875244,3.63539012,2750.8,2750.3,8.0]
[1748489875445,4.69539012,2750.8,2750.3,8.0]
[1748489875621,1.06,2750.8,2750.1,3.68620733]
[1748489875821,1.06,2750.8,2750.3,3.63596142]
[1748489876024,1.06,2750.8,2750.3,3.63596698]
[1748489876539,1.06,2750.8,2750.5,8.0]
[1748489878040,1.06,2750.8,2750.4,8.0]
[1748489878473,1.06,2750.9,2750.5,8.0]
[1748489878675,1.06,2750.9,2750.7,11.63538923]
[1748489878878,1.06,2750.9,2750.7,8.0]
[1748489879089,1.06,2750.9,2750.5,3.63567285]
[1748489879283,4.57073911,2751.1,2750.6,3.63556269]
[1748489879451,1.9958,2751.1,2750.6,3.63546231]
[1748489879775,0.9358,2751.1,2750.6,3.63546231]
[1748489879980,1.9958,2751.1,2750.6,3.63546231]
[1748489880156,1.9958,2751.1,2750.7,3.63540445]
[1748489880356,1.9958,2751.1,2750.7,3.63535728]
[1748489880560,4.18393518,2751.9,2750.7,3.63535728]
[1748489880561,1.06,2751.2,2751.1,11.63488091]
[1748489880864,0.9435,2751.4,2751.1,3.63485317]
[1748489880865,1.06,2751.4,2751.1,3.63485317]
[1748489881668,1.06,2751.4,2751.0,8.0]
[1748489881669,1.06,2751.4,2751.0,3.63493008]
[1748489881884,1.06,2751.6,2751.1,8.0]
[1748489882075,3.63314707,2752.5,2751.3,8.0]
[1748489882076,0.9193,2752.3,2751.3,8.0]
[1748489882272,4.5527112,2752.3,2751.7,3.63407033]
[1748489882473,4.5527112,2752.3,2751.8,8.0]
[1748489882647,5.47729807,2752.3,2751.8,8.0]
[1748489882864,0.9193,2752.3,2751.8,3.63389032]
[1748489883269,0.9193,2752.3,2752.0,3.63363329]
[1748489883480,0.9733,2752.5,2752.0,3.63363329]
[1748489883803,3.63339658,2752.3,2751.7,11.63399185]
[1748489884003,3.63339658,2752.3,2751.7,12.14945011]
[1748489884383,1.06,2752.4,2751.8,3.63390984]
[1748489884583,4.60639665,2752.5,2752.0,3.63371316]
[1748489884767,4.60639665,2752.5,2751.9,3.6338455]
[1748489884768,1.06,2752.4,2751.9,3.6338455]
[1748489885103,1.06,2752.4,2752.0,0.36338455]
[1748489885303,1.06,2752.4,2751.7,12.38845826]
[1748489885502,1.06,2752.4,2751.7,16.02255327]
[1748489885808,3.63337016,2752.3,2751.7,16.02255327]
[1748489886873,3.63337016,2752.3,2751.7,16.02253091]
[1748489887075,1.06,2752.4,2751.9,3.63383378]
[1748489887267,4.69321473,2752.4,2751.8,3.63393605]
[1748489887579,4.69321473,2752.4,2751.8,4.73793605]
[1748489887783,3.6333483,2752.3,2751.8,1.104]
[1748489888615,3.6333483,2752.3,2751.8,4.73796304]
[1748489888905,4.69322885,2752.4,2751.9,3.63382921]
[1748489889110,3.63333559,2752.3,2751.8,4.144]
[1748489889902,3.63333559,2752.3,2751.8,7.77797371]
[1748489890073,3.6334079,2752.3,2751.8,4.144]
[1748489890498,3.6334079,2752.3,2751.8,7.77794696]
[1748489890700,4.69323061,2752.4,2751.9,3.633838]
[1748489891020,1.06,2752.4,2752.0,3.63370209]
[1748489891227,1.06,2752.4,2751.8,7.77798449]
[1748489891228,1.06,2752.4,2751.9,8.51545826]
[1748489891532,1.06,2752.4,2752.2,8.0]
[1748489892032,1.06,2752.4,2752.3,11.63332485]
[1748489893230,1.06,2752.4,2752.3,8.0]
[1748489894024,0.8872,2752.7,2752.4,8.0]
[1748489894231,1.06,2752.6,2752.4,8.0]
[1748489894430,1.06,2752.6,2752.3,3.63332102]
[1748489894630,1.06,2752.6,2752.4,8.0]
[1748489895196,1.06,2752.6,2752.4,11.63308233]
[1748489895816,0.05,2752.9,2752.5,1.104]
[1748489896017,0.05,2752.9,2752.6,8.0]
[1748489896217,0.05,2752.9,2752.6,11.63288076]
[1748489896420,0.05,2752.9,2752.6,8.0]
[1748489897107,0.9438,2752.8,2752.6,8.0]
[1748489897316,4.57647521,2752.8,2752.6,8.0]
[1748489897534,0.9438,2752.8,2752.6,8.0]
[1748489897896,3.63279689,2752.7,2752.6,8.0]
[1748489898096,3.63292886,2752.6,2752.5,3.04]
[1748489898340,3.63292886,2752.6,2752.5,11.04]
[1748489898706,4.45877636,2752.7,2752.5,11.04]
[1748489899094,4.45877636,2752.7,2752.5,8.0]
[1748489899299,4.45877636,2752.7,2752.0,3.63371847]
[1748489899536,0.82591484,2752.7,2752.3,3.63325401]
[1748489899835,4.45871351,2752.7,2752.1,3.6334951]
[1748489900015,4.45871351,2752.7,2752.1,3.63352905]
[1748489900213,0.82591484,2752.7,2752.2,3.63345245]
[1748489900397,3.6328759,2752.7,2752.0,3.63371776]
[1748489900602,4.57649984,2752.8,2752.1,3.63354784]
[1748489901022,3.63292985,2752.6,2752.0,3.63363453]
[1748489901214,3.63285196,2752.7,2752.1,3.633512]
[1748489901635,4.57647485,2752.8,2752.1,3.633512]
[1748489901828,0.9439,2752.6,2751.6,3.63420938]
[1748489902024,0.9439,2752.6,2751.7,3.871]
[1748489902225,0.9439,2752.6,2752.2,3.63335343]
[1748489902429,0.9439,2752.6,2752.3,3.63328935]
[1748489902619,0.9439,2752.6,2752.1,3.63353105]
[1748489902805,3.63306615,2752.5,2752.0,3.6336537]
[1748489903007,3.63308743,2752.5,2751.9,3.63380563]
[1748489903338,4.57688287,2752.6,2751.8,3.63396405]
[1748489903636,4.57683944,2752.6,2752.1,3.63351099]
[1748489903822,4.57683944,2752.6,2751.3,12.15906904]
[1748489903823,2.19821913,2752.6,2751.3,0.52445653]
[1748489904140,2.19821913,2752.6,2752.0,3.63363529]
[1748489904337,5.83121971,2752.6,2752.0,3.63363529]
[1748489904541,3.63309649,2752.5,2752.0,3.63372033]
[1748489904749,3.63309649,2752.5,2751.9,3.63383076]
[1748489905045,4.57952139,2752.5,2751.9,3.63383076]
[1748489905243,3.63322678,2752.4,2751.9,3.63383076]
[1748489905415,4.57954526,2752.5,2751.9,3.63383076]
[1748489905616,3.6332656,2752.4,2751.8,7.50491924]
[1748489905835,3.6332656,2752.4,2751.8,3.871]
[1748489906023,3.6332656,2752.4,2751.7,3.63407443]
[1748489906218,3.6332656,2752.4,2751.8,3.871]
[1748489906631,3.6332656,2752.4,2751.9,3.63378695]
[1748489906834,4.57953032,2752.5,2751.9,3.63378695]
[1748489907034,3.63320198,2752.4,2751.9,3.63378695]
[1748489907242,4.57949633,2752.5,2751.8,7.50496194]
[1748489907550,4.57952247,2752.5,2751.9,3.63383814]
[1748489907713,4.57952247,2752.5,2752.0,3.6336952]
[1748489908118,4.57950301,2752.5,2751.9,3.6337629]
[1748489908518,4.57950301,2752.5,2752.0,3.63366992]
[1748489908718,4.57950301,2752.5,2751.9,3.6337629]
[1748489908719,0.9464249,2752.5,2752.1,3.63358778]
[1748489908933,4.57684645,2752.6,2752.1,3.63358778]
[1748489909348,4.57684645,2752.6,2751.8,3.871]
[1748489909349,3.633075,2752.5,2752.0,3.63370144]
[1748489909734,3.63319572,2752.4,2751.9,3.63379521]
[1748489911217,3.63343634,2752.3,2751.8,7.50497884]
[1748489911422,3.6332149,2752.4,2751.8,3.871]
[1748489911647,4.09095955,2752.4,2751.8,7.50495478]
[1748489911847,3.63340073,2752.3,2751.8,3.871]
[1748489912073,3.63340073,2752.3,2751.8,7.5049767]
[1748489912556,4.09093915,2752.4,2751.8,11.871]
[1748489912767,3.63340631,2752.3,2751.8,11.871]
[1748489912990,0.45771149,2752.4,2751.8,8.0]
[1748489912991,4.09090779,2752.4,2751.8,8.0]
[1748489913291,3.63344204,2752.3,2751.8,11.871]
[1748489913457,3.6334315,2752.3,2751.8,11.871]
[1748489913788,3.63340747,2752.3,2751.8,11.871]
[1748489914011,3.6334464,2752.3,2751.8,11.871]
[1748489914143,0.9491,2752.1,2751.8,8.0]
[1748489915457,0.9491,2752.1,2751.8,11.63398415]
[1748489915656,0.9491,2752.1,2751.8,8.0]
[1748489916193,0.9491,2752.1,2751.7,8.0]
[1748489916488,0.9491,2752.1,2751.7,11.63408714]
[1748489917493,0.9491,2752.1,2751.7,8.0]
[1748489917793,0.9491,2752.1,2751.7,11.63404225]
[1748489919384,0.9491,2752.1,2751.7,11.63402437]
[1748489919950,0.9491,2752.1,2751.7,8.0]
[1748489920153,0.9491,2752.1,2751.7,11.63408776]
[1748489920859,0.9491,2752.1,2751.7,11.63403205]
[1748489921474,0.9491,2752.1,2751.8,3.63397142]
[1748489921767,0.9491,2752.1,2751.7,11.63404906]
[1748489922394,4.58269224,2752.1,2751.7,8.0]
[1748489922600,0.9075,2752.0,2751.1,3.63485988]
[1748489922782,0.9075,2751.9,2751.1,3.63485988]
[1748489922956,3.63418523,2751.7,2751.2,8.0]
[1748489923187,4.54139152,2751.9,2751.2,3.63476301]
[1748489923362,0.45413915,2751.8,2751.2,3.63476301]
[1748489923563,0.45413915,2751.8,2750.1,0.05]
[1748489923564,0.9075,2751.6,2750.1,0.05]
[1748489923759,1.058,2751.5,2750.4,3.63573014]
[1748489923953,1.058,2751.5,2751.1,3.63487367]
[1748489924494,1.058,2751.5,2751.0,11.63498445]
[1748489924960,4.6924482,2751.5,2750.9,15.50510794]
[1748489925464,1.058,2751.5,2750.9,15.50508106]
[1748489925656,1.058,2751.5,2751.2,3.63476114]
[1748489926212,1.058,2751.5,2751.1,3.63486244]
[1748489926703,1.058,2751.5,2751.2,3.63470287]
[1748489928005,1.058,2751.5,2751.1,3.63485705]
[1748489928625,4.69243312,2751.5,2751.0,3.63502405]
[1748489929029,4.69243312,2751.5,2750.9,15.50516599]
[1748489929331,1.61799331,2751.5,2750.8,11.63520944]
[1748489929542,0.9749,2751.1,2750.6,3.63549898]
[1748489929693,0.9749,2751.1,2750.8,3.63530609]
[1748489929894,0.9749,2751.1,2750.9,3.63517394]
[1748489930200,0.9749,2751.1,2750.7,11.63541457]
[1748489930711,0.9752,2751.4,2750.7,9.75884012]
[1748489930913,2.0332,2751.4,2751.1,3.63484388]
[1748489932230,2.0332,2751.4,2751.0,3.63499401]
[1748489932733,2.0332,2751.4,2751.1,3.63486294]
[1748489932939,1.058,2751.4,2751.1,3.63486294]
[1748489933239,1.058,2751.5,2751.0,3.63502723]
[1748489933799,0.9752,2751.4,2750.7,8.0]
[1748489934138,3.63490133,2751.2,2750.6,7.50548921]
[1748489934339,3.63490133,2751.2,2750.5,15.50561723]
[1748489934340,0.9752,2751.2,2750.5,15.50561723]
[1748489934543,3.63529226,2750.9,2750.2,3.87]
[1748489934702,0.9752,2751.0,2750.2,3.87]
[1748489935038,3.63538049,2750.8,2750.2,11.63602194]
[1748489935442,3.63538049,2750.8,2750.3,11.63594047]
[1748489935848,4.61027747,2751.0,2750.2,11.63603839]
[1748489936049,3.63517394,2750.9,2750.2,11.63603839]
[1748489936223,3.63517753,2750.9,2750.2,11.63603839]
[1748489936422,3.63530609,2750.8,2750.2,11.63603839]
[1748489937138,5.07131147,2751.0,2750.2,11.63603839]
[1748489937139,3.63545679,2750.7,2750.2,11.63603839]
[1748489937339,3.63538549,2750.8,2750.2,11.63603839]
[1748489937823,1.43622775,2751.0,2750.2,8.0]
[1748489938058,3.63551413,2750.7,2750.2,8.0]
[1748489938274,1.059,2750.7,2750.1,8.05]
[1748489938469,0.9752,2750.6,2750.1,0.05]
[1748489938766,0.9752,2750.6,2750.3,3.63596698]
[1748489938927,1.059,2750.7,2750.4,3.6358293]
[1748489939122,0.9267,2750.9,2750.4,3.6358293]
[1748489939346,0.9267,2750.9,2750.5,3.63568006]
[1748489939347,1.059,2750.8,2750.5,3.63568006]
[1748489939552,1.25757,2750.8,2750.2,3.63606352]
[1748489939750,1.25757,2750.8,2750.1,8.05]
[1748489939751,1.059,2750.8,2750.3,3.63596481]
[1748489939955,1.059,2750.8,2750.2,3.63607171]
[1748489940141,1.059,2750.8,2750.4,3.6358309]
[1748489940533,1.059,2750.8,2750.3,3.63593007]
[1748489940750,1.059,2750.8,2750.5,3.63558722]
[1748489940953,1.059,2750.8,2750.6,3.63555619]
[1748489941159,1.059,2750.8,2750.7,3.63543825]
[1748489941357,1.059,2750.8,2750.2,1.75884012]
[1748489941523,1.059,2750.8,2750.6,3.63544108]
[1748489941745,1.059,2750.8,2750.7,3.63543825]
[1748489942569,1.059,2750.8,2750.7,11.58543825]
[1748489943369,1.059,2750.8,2750.4,3.869]
[1748489943548,1.059,2750.8,2750.6,8.0]
[1748489943549,0.9694,2750.7,2750.6,8.0]
[1748489943869,0.9694,2750.7,2750.5,8.0]
[1748489944175,0.9694,2750.7,2750.6,11.63557042]
[1748489944377,0.9694,2750.7,2750.6,8.0]
[1748489944580,0.9694,2750.7,2750.6,11.63557042]
[1748489944934,0.9694,2750.7,2750.6,8.0]
[1748489945479,0.9694,2750.7,2750.6,11.63557042]
[1748489945831,1.057,2750.9,2750.7,3.63537505]
[1748489946232,1.057,2750.9,2750.6,11.63552197]
[1748489946582,1.057,2750.9,2750.6,8.0]
[1748489947236,0.9235,2750.8,2750.6,8.0]
[1748489949139,16.0,2754.8,2750.7,8.0]
[1748489949140,0.9766,2751.5,2750.7,8.0]